Cogmind - Beta 11 @@@ ROGUE MODE // 2022.03.21 @ 17:24:00 Player: ILikeMonsters1890 Result: Core destroyed Performance ------------- Evolutions (3) 1500 Regions Visited (7) 1400 Robots Destroyed (90) 450 Value Destroyed (2693) 2693 Prototype IDs (11) 220 Alien Tech Used (0) 0 Bonus (987) 987 TOTAL SCORE: 7250 Bonus ------- High Alert Combat Kills 572 Follower Combat Kills 429 Friendly Fire -14 Cogmind --------- Core Integrity 0/700 Matter 92/300 Energy 5/100 System Corruption 4% Temperature Critical (779) Movement Walking (190) Ox1 Location -7/Storage Parts ------- > --- POWER (2) -------- (None) > --- PROPULSION (3) --- Aluminum Leg > --- UTILITY (4) ------ Advanced Heat Sink Medium Storage Unit Transmission Jammer > --- WEAPON (4) ------- Particle Gun > --- INVENTORY (10) --- Aluminum Leg Aluminum Leg Peak State ------------ > --- POWER ------------ Nuclear Core Micro Nuclear Core > --- PROPULSION ------- Compact Wheel Armored Huge Wheel > --- UTILITY ---------- Medium Storage Unit Signal Interpreter Layered Light Armor Plating Hacking Suite > --- WEAPON ----------- Lightning Gun Heavy Ion Cannon Minigun Enhanced Autogun > --- INVENTORY -------- Light Nuclear Core Compact Wheel Compact Wheel Compact Wheel Armored Wheel Advanced Heat Sink Transmission Jammer Light Armor Plating Autogun [Rating: 42] Favorites ----------- Power Ion Engine Engine Ion Engine Power Core Nuclear Core Propulsion Compact Wheel Leg Aluminum Leg Wheel Compact Wheel Utility Signal Interpreter Device Experimental Sensor Array Storage Small Storage Unit Processor Signal Interpreter Hackware Hacking Suite Protection Light Armor Plating Weapon Particle Gun Energy Gun Particle Gun Energy Cannon Heavy Ion Cannon Ballistic Gun Light Assault Rifle Ballistic Cannon Light Cannon Launcher Rocket Launcher Build | -11 -10 -10 -9 -9 -8 -7 -7 ------- Run | Scr Mat Min Mat Min Mat Fac Sto Slots Evolved 6 | . . . 2 . 2 2 . Power 1 | . . . . . . 1 . Propulsion 1 | . . . . . . 1 . Utility 2 | . . . 1 . 1 . . Weapon 2 | . . . 1 . 1 . . Parts Attached 64 | 6 4 1 8 2 11 19 13 Power 8 | 1 1 . . 1 . 3 2 Engine 4 | 1 1 . . 1 . 1 . Core 4 | . . . . . . 2 2 Reactor . | . . . . . . . . Propulsion 13 | 2 1 . 2 . 1 4 3 Treads . | . . . . . . . . Leg 1 | . . . . . . . 1 Wheel 12 | 2 1 . 2 . 1 4 2 Hover . | . . . . . . . . Flight . | . . . . . . . . Utility 16 | 1 2 . 2 . 3 4 4 Device 5 | . 1 . . . 1 . 3 Storage 4 | 1 . . . . 2 1 . Processor 1 | . 1 . . . . . . Hackware 1 | . . . . . . 1 . Protection 5 | . . . 2 . . 2 1 Artifact . | . . . . . . . . Weapon 27 | 2 . 1 4 1 7 8 4 Energy Gun 12 | 1 . . 2 1 3 3 2 Energy Cannon 1 | . . . . . . 1 . Ballistic Gun 8 | 1 . 1 . . 2 3 1 Ballistic Cannon 4 | . . . 1 . 1 1 1 Launcher 2 | . . . 1 . 1 . . Special Weapon . | . . . . . . . . Impact Weapon . | . . . . . . . . Slashing Weapon . | . . . . . . . . Piercing Weapon . | . . . . . . . . Special Melee Weapon . | . . . . . . . . Unidentified Prototypes 3 | . . . . . 2 1 . Parts Lost 28 | . 1 . 1 . 1 6 19 Power 5 | . . . . . . 1 4 Propulsion 6 | . 1 . 1 . . . 4 Utility 6 | . . . . . . 2 4 Weapon 11 | . . . . . 1 3 7 Highest Loss Streak 15 | . 1 . 1 . 1 2 15 To Critical Strikes . | . . . . . . . . Average Slot Usage (%) 95 | . 84 100 99 100 92 92 93 Engine 8 | . 14 14 11 11 9 2 . Core 4 | . . . . . . 11 13 Wheel 19 | . 24 28 21 22 11 15 21 Device 2 | . 2 . . . 9 1 5 Storage 9 | . 14 14 11 11 9 7 7 Processor 8 | . . 14 11 11 9 7 6 Hackware 1 | . . . . . . 5 1 Protection 6 | . . . 11 11 9 7 6 Energy Gun 9 | . 14 3 12 19 10 5 6 Energy Cannon 1 | . . . . . . 3 6 Ballistic Gun 12 | . 14 24 5 . 16 16 3 Ballistic Cannon 2 | . . . 3 2 3 . 10 Launcher 4 | . . . 11 11 5 3 . Naked Turns . | . . . . . . . . Heaviest Build 49 | 12 13 12 23 25 31 48 49 Greatest Support 48 | 20 26 26 32 32 32 48 48 Greatest Overweight (x) 2 | . 1 . . . 1 1 2 Average Overweight (x) . | . . . . . . . . Largest Inventory Capacity 10 | 8 8 8 8 8 10 10 10 Average Capacity 8 | 7 8 8 8 8 8 9 10 Most Carried 10 | 6 8 8 8 8 8 10 10 Average Carried 7 | 3 6 7 7 7 7 8 8 Final Capacity 10 | 8 8 8 8 8 8 10 10 Final Carried 10 | 6 7 8 6 8 8 10 2 Class Distribution -------------------- 25% | Mutant 24% | Scavenger-Tank 17% | Skirmisher 14% | Scavenger-Mutant 14% | Tank 4% | Scavenger-Skirmisher Dominant Class ---------------- Mutant | -10/Materials Mutant | -10/Mines Tank | -9/Materials Scavenger-Mutant | -9/Mines Skirmisher | -8/Materials Scavenger-Tank | -7/Factory Scavenger-Tank | -7/Storage Resources | -11 -10 -10 -9 -9 -8 -7 -7 ----------- Run | Scr Mat Min Mat Min Mat Fac Sto Matter Collected 1937 | 218 112 17 211 197 307 717 158 Remotely 17 | . 17 . . . . . . Salvage Created 2660 | . 329 209 194 308 338 949 333 Parts 160 | . 30 11 17 17 19 50 16 Haulers Intercepted . | . . . . . . . . Recyclers Shooed 2 | . 1 . . 1 . . . Parts Field Recycled . | . . . . . . . . Retrieved Matter . | . . . . . . . . Parts Self-Destructed . | . . . . . . . . Prevented . | . . . . . . . . Kills | -11 -10 -10 -9 -9 -8 -7 -7 ------- Run | Scr Mat Min Mat Min Mat Fac Sto Combat Hostiles Destroyed 70 | . 9 3 9 13 6 21 9 Guns 34 | . 9 3 2 4 2 11 3 Cannons 11 | . . . . . 2 3 6 AOE 25 | . . . 7 9 2 7 . Classes Destroyed 12 | . 4 . 3 . 2 3 . Worker 5 | . . . 1 1 3 . . Builder 5 | . . . 2 1 1 1 . Tunneler 2 | . . . . . . 2 . Recycler 5 | . 1 2 . 1 . 1 . Operator 1 | . . . . . 1 . . Watcher 2 | . 2 . . . . . . Swarmer 26 | . 6 3 4 7 . 3 3 Grunt 34 | . 3 . 3 6 4 13 5 Duelist 1 | . . . . . . 1 . Sentry 4 | . . . 2 . 1 . 1 Hunter 2 | . . . . . 1 1 . Programmer 3 | . . . . . . 3 . Best Kill Streak 9 | . 6 5 9 4 5 4 5 Combat Bots Only 7 | . 4 3 7 3 2 3 5 Max Kills in Single Turn 3 | . 1 1 3 3 3 3 1 Gunslinging . | . . . . . . . . Exploded 3 | . . . 2 3 1 2 . Melee . | . . . . . . . . Uniques/NPCs Destroyed . | . . . . . . . . Combat | -11 -10 -10 -9 -9 -8 -7 -7 -------- Run | Scr Mat Min Mat Min Mat Fac Sto Damage Taken 3853 | . 275 63 251 166 215 1190 1693 Core 785 | . 60 . . 12 . 157 556 Absorbed by Shields . | . . . . . . . . Core Remaining (%) 93 | 100 . 76 . 97 100 . . Volleys Fired 171 | . 33 13 15 14 25 47 24 Largest 4 | . 2 2 3 3 4 4 4 Hottest 203 | . 60 60 143 143 149 187 203 Shots Fired 453 | . 65 26 35 37 66 153 71 Gun 336 | . 65 26 17 21 52 129 26 Cannon 84 | . . . 5 6 10 18 45 Launcher 33 | . . . 13 10 4 6 . Special . | . . . . . . . . Kinetic 256 | . 33 19 9 6 46 106 37 Thermal 111 | . 32 7 12 13 15 15 17 Explosive 33 | . . . 13 10 4 6 . Electromagnetic 53 | . . . 1 8 1 26 17 Robot Hit Streak 10 | . 10 3 9 8 4 6 4 Robot Miss Streak 9 | . 4 3 4 2 4 7 9 Penetration Max . | . . . . . . . . Secondary Targets 2 | . . 1 . . . 1 . Max Gunslinging Chain 1 | . . 1 . . . 1 . Shots Hit Robots 231 | . 35 7 23 23 32 85 26 Core Hits 166 | . 19 8 20 21 22 47 29 Critical Kills . | . . . . . . . . Critical Parts Destroyed 1 | . . . . . . 1 . Critical Strikes 6 | . . . . 3 . 2 1 Burn 2 | . . . . 2 . . . Destroy 1 | . . . . . . 1 . Blast 2 | . . . . 1 . . 1 Corrupt 1 | . . . . . . 1 . Melee Attacks . | . . . . . . . . Impact . | . . . . . . . . Slashing . | . . . . . . . . Piercing . | . . . . . . . . Sneak Attacks . | . . . . . . . . Combat Hostiles . | . . . . . . . . Follow-up Attacks . | . . . . . . . . Damage Inflicted 6107 | . 327 73 948 855 873 2371 660 Guns 2620 | . 327 73 165 212 463 1230 150 Cannons 926 | . . . 31 89 71 273 462 Explosions 2558 | . . . 752 554 339 865 48 Melee . | . . . . . . . . Ramming 3 | . . . . . . 3 . Kinetic 2097 | . 146 30 66 89 402 1054 310 Thermal 1571 | . 181 43 123 167 104 769 184 Explosive 2042 | . . . 752 554 339 349 48 Electromagnetic 394 | . . . 7 45 28 196 118 Impact . | . . . . . . . . Slashing . | . . . . . . . . Piercing . | . . . . . . . . Highest Corruption 4 | . . . . . . . 4 Average Corruption 3 | . . . . . . . 3 Corruption Purged . | . . . . . . . . Corruption Blocked . | . . . . . . . . Effects 1 | . . . . . . . 1 Message Errors 1 | . . . . . . . 1 Overload Shots . | . . . . . . . . Overflow Damage 141 | . . . 6 38 . 84 13 Projectiles 7 | . . . . . . . 7 Explosions 134 | . . . 6 38 . 84 6 Melee . | . . . . . . . . Knockbacks 12 | . . . . . . . 12 Impact . | . . . . . . . . Kinetic 11 | . . . . . . . 11 Secondary 1 | . . . . . . . 1 Self-Inflicted Damage 335 | . . . 74 43 32 107 79 Shots 10 | . . . 2 2 1 4 1 Rammed 1 | . . . . . . 1 . Targets Rammed 1 | . . . . . . 1 . Kicked . | . . . . . . . . Crushed . | . . . . . . . . Highest Temperature 959 | . 105 40 294 229 314 528 959 Average Temperature 148 | . 37 22 123 76 101 147 338 Received Heat Transfer 1251 | . 81 . 69 60 90 351 600 Effects 56 | . . . 1 2 6 12 35 Shutdowns 9 | . . . . . . 5 4 Energy Bleed 4 | . . . 1 . . . 3 Interference 19 | . . . . 2 6 5 6 Matter Decay 4 | . . . . . . 1 3 Short Circuit 4 | . . . . . . 1 3 Damage (minor) 3 | . . . . . . . 3 Damage (major) 11 | . . . . . . . 11 Damage (core) 2 | . . . . . . . 2 Siege Activations . | . . . . . . . . Robots Corrupted . | . . . . . . . . Combat Hostiles . | . . . . . . . . Parts Fried . | . . . . . . . . Impact Corruptions . | . . . . . . . . Robots Melted . | . . . . . . . . Combat Hostiles . | . . . . . . . . Parts Melted 1 | . . . . . . 1 . Heat Transferred 2577 | . 425 100 296 555 259 683 259 Parts Sabotaged . | . . . . . . . . Parts Stolen . | . . . . . . . . Parts Stripped . | . . . . . . . . Power Chain Reactions 2 | . . . . . . 2 . Missiles Intercepted . | . . . . . . . . Alert | -11 -10 -10 -9 -9 -8 -7 -7 ------- Run | Scr Mat Min Mat Min Mat Fac Sto Peak Influence 866 | . 244 189 667 772 648 866 538 Initial 329 | . . 94 . 259 286 294 329 Average 426 | . 91 128 352 559 435 666 387 Maximum Alert Level 3 | . 1 . 2 3 2 3 2 Low Security (%) 26 | 100 88 100 44 . . . . Level 1 22 | . 11 . 3 27 44 16 53 Level 2 33 | . . . 51 47 55 28 46 Level 3 17 | . . . . 25 . 54 . Level 4 . | . . . . . . . . Level 5 . | . . . . . . . . High Security . | . . . . . . . . Max Security . | . . . . . . . . Squads Dispatched 15 | . 3 . . . 2 6 4 Investigation 2 | . . . . . 1 1 . Extermination 3 | . . . . . . 2 1 Reinforcement 9 | . 3 . . . 1 3 2 Assault . | . . . . . . . . Garrison 1 | . . . . . . . 1 Intercept . | . . . . . . . . Searches Triggered . | . . . . . . . . Construction Impeded 1 | . . . . . . . 1 Haulers Reinforced 1 | . . . . . . 1 . Active Scanning Responses . | . . . . . . . . Cargo Convoy Interrupts 1 | . . . . . . 1 . Stealth | -11 -10 -10 -9 -9 -8 -7 -7 --------- Run | Scr Mat Min Mat Min Mat Fac Sto Distress Signals 6 | . 4 . 1 . 1 . . Communications Jammed . | . . . . . . . . Distress Signals . | . . . . . . . . Times Spotted 107 | . 17 3 13 11 18 28 17 Peak Tracking Total 8 | . 6 3 8 3 3 4 6 Tactical Retreats 3 | . 1 . 1 . . . 1 Traps | -11 -10 -10 -9 -9 -8 -7 -7 ------- Run | Scr Mat Min Mat Min Mat Fac Sto Traps Triggered . | . . . . . . . . Indirectly . | . . . . . . . . Trap Hack Attempts . | . . . . . . . . Triggered . | . . . . . . . . Disarmed . | . . . . . . . . Reprogrammed . | . . . . . . . . Reused . | . . . . . . . . Traps Extracted . | . . . . . . . . Installed . | . . . . . . . . Triggered 2 | . . . . 2 . . . Machines | -11 -10 -10 -9 -9 -8 -7 -7 ---------- Run | Scr Mat Min Mat Min Mat Fac Sto Machines Disabled 17 | . . . 2 . . 12 3 Max in Single Turn 3 | . . . 2 . . 3 1 Garrison Access 1 | . . . . . . 1 . Machines Sabotaged . | . . . . . . . . Garrisons Compromised . | . . . . . . . . Overloaded Fab Kills . | . . . . . . . . Hacking | -11 -10 -10 -9 -9 -8 -7 -7 --------- Run | Scr Mat Min Mat Min Mat Fac Sto Machines Accessed 13 | . . . 6 . 4 3 . Terminals 11 | . . . 6 . 4 1 . Fabricators 1 | . . . . . . 1 . Repair Stations . | . . . . . . . . Recycling Units . | . . . . . . . . Scanalyzers . | . . . . . . . . Garrison Access 1 | . . . . . . 1 . Total Hacks 44 | . . . 25 . 13 6 . Successful 30 | . . . 19 . 7 4 . Failed 14 | . . . 6 . 6 2 . Catastrophic 1 | . . . 1 . . . . Database Lockouts . | . . . . . . . . Manual . | . . . . . . . . Terminals 42 | . . . 25 . 13 4 . Fabricators 1 | . . . . . . 1 . Repair Stations . | . . . . . . . . Recycling Units . | . . . . . . . . Scanalyzers . | . . . . . . . . Garrison Access 1 | . . . . . . 1 . Terminal Hacks 28 | . . . 19 . 7 2 . Record 9 | . . . 7 . 2 . . Robot Schematic 1 | . . . . . . 1 . Prototype ID Bank 4 | . . . 3 . . 1 . Branch Access Points 1 | . . . . . 1 . . Emergency Access Points 2 | . . . . . 2 . . Alert Level 2 | . . . 2 . . . . Locate Traps 1 | . . . . . 1 . . Dispatch Records 2 | . . . 2 . . . . Reinforcement Status 1 | . . . 1 . . . . Hauler Manifests 2 | . . . 1 . 1 . . Registered Components 1 | . . . 1 . . . . Zone Layout 2 | . . . 2 . . . . Fabricator Hacks 1 | . . . . . . 1 . Build 1 | . . . . . . 1 . Repair Station Hacks . | . . . . . . . . Recycling Unit Hacks . | . . . . . . . . Scanalyzer . | . . . . . . . . Garrison Access Hacks 1 | . . . . . . 1 . Seal Access 1 | . . . . . . 1 . Unauthorized Hacks . | . . . . . . . . Terminals . | . . . . . . . . Fabricators . | . . . . . . . . Repair Stations . | . . . . . . . . Recycling Units . | . . . . . . . . Scanalyzers . | . . . . . . . . Garrison Access . | . . . . . . . . Data Cores Recovered . | . . . . . . . . Used . | . . . . . . . . Hacking Detections 11 | . . . 6 . 4 1 . Full Trace Events 2 | . . . . . 1 1 . Feedback Events . | . . . . . . . . Feedback Blocked . | . . . . . . . . Robot Schematics Acquired 1 | . . . . . . 1 . Robots Built 3 | . . . . . . 3 . Authchips . | . . . . . . . . Time 116 | . . . . . . 116 . Total Robot Build Rating 9 | . . . . . . 9 . Part Schematics Acquired . | . . . . . . . . Parts Built . | . . . . . . . . Authchips . | . . . . . . . . Time . | . . . . . . . . Total Part Build Rating . | . . . . . . . . Parts Repaired . | . . . . . . . . Time . | . . . . . . . . Parts Recycled . | . . . . . . . . Recycled Matter . | . . . . . . . . Retrieved Matter . | . . . . . . . . Retrieved Components . | . . . . . . . . Parts Scanalyzed . | . . . . . . . . Part Schematics Acquired . | . . . . . . . . Parts Damaged . | . . . . . . . . Bothacking | -11 -10 -10 -9 -9 -8 -7 -7 ------------ Run | Scr Mat Min Mat Min Mat Fac Sto Used RIF Installer . | . . . . . . . . Robots Hacked . | . . . . . . . . Non-combat . | . . . . . . . . Combat . | . . . . . . . . Robot Hacks Applied . | . . . . . . . . Relay Couplers Released . | . . . . . . . . Fabnet Peak Effective % . | . . . . . . . . Robots Rewired . | . . . . . . . . Allies Hacked . | . . . . . . . . Hacks Repelled . | . . . . . . . . Allies | -11 -10 -10 -9 -9 -8 -7 -7 -------- Run | Scr Mat Min Mat Min Mat Fac Sto Total Allies 6 | . . . . 3 . 3 . Largest Group 3 | . . . . 3 3 3 . Highest-Rated Group 75 | . . . . 74 74 75 . Highest-Rated Ally 31 | . . . . 31 31 31 . Total Orders . | . . . . . . . . Ally Attacks 64 | . . . . 7 35 22 . Total Damage 1308 | . . . . 86 504 718 . Kills 15 | . . . . 2 8 5 . Allies Corrupted . | . . . . . . . . Allies Melted . | . . . . . . . . Intel | -11 -10 -10 -9 -9 -8 -7 -7 ------- Run | Scr Mat Min Mat Min Mat Fac Sto Robot Analysis Total . | . . . . . . . . Derelict Logs Recovered 4 | . . 2 . 2 . . . Drone Launches . | . . . . . . . . Drone Recoveries . | . . . . . . . . Exploration | -11 -10 -10 -9 -9 -8 -7 -7 ------------- Run | Scr Mat Min Mat Min Mat Fac Sto Turns Passed 3843 | 90 268 528 354 682 658 946 317 Spaces Moved 2792 | 94 134 525 305 549 492 524 169 Core 10 | 10 . . . . . . . Treads . | . . . . . . . . Legs 1 | . . . . . . . 1 Wheels 2781 | 84 134 525 305 549 492 524 168 Hover . | . . . . . . . . Flight . | . . . . . . . . Fastest Speed 50 | 50 80 90 90 100 100 100 96 Average Speed 98 | 76 84 90 91 100 106 104 109 Slowest Speed 190 | 80 95 90 100 100 115 115 190 Overloaded Moves . | . . . . . . . . Propulsion Burnouts . | . . . . . . . . Robots Hopped . | . . . . . . . . Cave-ins Triggered . | . . . . . . . . Exploration Rate (%) 36 | 4 17 96 29 80 34 13 19 Regions Visited 7 Branch Regions 3 Pre-discovered Areas . | . . . . . . . . Known Exits Taken 5 | . 1 1 1 1 1 . . Unknown Exits Taken 2 | 1 . . . . . 1 . Scrap Searched 4 | . . 1 . 3 . . . Spaces Dug . | . . . . . . . . Terrain Destroyed 358 | . . . 142 110 33 55 18 Melee . | . . . . . . . . Projectile 12 | . . . . . . 3 9 AOE 346 | . . . 142 110 33 52 9 Terrain Rammed . | . . . . . . . . Walls Destroyed . | . . . . . . . . Machines Disabled . | . . . . . . . . Actions | -11 -10 -10 -9 -9 -8 -7 -7 --------- Run | Scr Mat Min Mat Min Mat Fac Sto Total 3591 | 111 229 561 349 655 592 840 254 Wait 427 | . 52 10 11 75 21 221 37 Move 2785 | 93 133 524 304 548 491 523 169 Hop . | . . . . . . . . Pick Up 88 | 12 5 7 6 8 23 19 8 Fast Attach . | . . . . . . . . Attach 42 | 6 2 1 3 . 6 12 12 Detach 1 | . . . . . . 1 . Swap 22 | . 2 . 5 2 5 7 1 Drop 52 | . 2 6 5 6 21 9 3 Fire 171 | . 33 13 15 14 25 47 24 Melee . | . . . . . . . . Ram 1 | . . . . . . 1 . Kick . | . . . . . . . . Crush . | . . . . . . . . Escape Stasis . | . . . . . . . . Rewire 2 | . . . . 2 . . . Trap . | . . . . . . . . Miscellaneous . | . . . . . . . . Route ------- -11/Scrapyard -10/Materials -10/Mines (discovered 2 exits: *Mat x2) -9/Materials -9/Mines -8/Materials -7/Factory -7/Storage History --------- Turn | Location | Event 7 | -11/Scrapyard | Discovered new exit (range 15) 91 | -11/Scrapyard | Entered Materials 99 | -10/Materials | Discovered new exit (range 16) 324 | -10/Materials | Build established: Mutant 357 | -10/Materials | Identified exit to Mines 359 | -10/Materials | Entered Mines 496 | -10/Mines | Learned Materials security intel 633 | -10/Mines | Received a Rocket Launcher from a helpful Derelict 646 | -10/Mines | Discovered new exit (range 4) 648 | -10/Mines | Identified exit to Materials 685 | -10/Mines | Learned Materials stockpile data 858 | -10/Mines | Discovered exit to Materials (range 11) 887 | -10/Mines | Entered Materials 887 | -9/Materials | Evolved 2 slots: Utility x1, Weapon x1 1088 | -9/Materials | Destroyed 7 combat bots 1154 | -9/Materials | Discovered new exit (range 10) 1240 | -9/Materials | Identified exit to Mines 1241 | -9/Materials | Entered Mines 1459 | -9/Mines | Escorted by a lone wolf Derelict 1519 | -9/Mines | Found a damaged Exp. Sensor Array with a note attached 1522 | -9/Mines | Found Prototype Device 1547 | -9/Mines | Learned 2 Materials zone layouts 1670 | -9/Mines | Learned location of 1 exit from Lower Caves 1700 | -9/Mines | A weapon hastily lodged in a ceiling crevice suddenly fell to the ground 1704 | -9/Mines | Discovered new exit (range 15) 1735 | -9/Mines | Identified exit to Materials 1923 | -9/Mines | Entered Materials 1923 | -8/Materials | Accompanied by 3 allies 1923 | -8/Materials | Evolved 2 slots: Utility x1, Weapon x1 1923 | -8/Materials | Identified Exp. Sensor Array 1928 | -8/Materials | Led the pair of lost Derelicts to an unsafe place 2553 | -8/Materials | Discovered new exit (range 8) 2558 | -8/Materials | Build established: Skirmisher 2580 | -8/Materials | Identified exit to Factory 2581 | -8/Materials | Entered Factory 2581 | -7/Factory | Accompanied by 2 allies 2581 | -7/Factory | Evolved 2 slots: Power x1, Propulsion x1 3269 | -7/Factory | Fabricated C-17 Slicer? 3270 | -7/Factory | Cargo convoy interrupted 3423 | -7/Factory | Build established: Scavenger-Tank 3506 | -7/Factory | Discovered new exit (range 9) 3527 | -7/Factory | Entered Storage 3718 | -7/Storage | Lost 4 parts (1p1n2w) 3824 | -7/Storage | Garrison activated, responded to threat 3835 | -7/Storage | Core integrity fell below 50% 3843 | -7/Storage | Core integrity fell below 20% 3845 | -7/Storage | Core destroyed Last Messages --------------- 03836_ Cryofiber Web destroyed. 03836_ Signal Interpreter destroyed. 03838_ Overheating: System interference. 03838_ Shotgun temporarily disabled. 03838_ Particle Gun temporarily disabled. 03838_ Critical hit (Burn: +37). 03839_ Overheating: Matter decay (-33). 03839_ Broken Hvy. Ion Cannon destroyed. 03840_ Overheating: Core damaged (-91). 03840_ Critical hit (Burn: +37). 03842_ Power failure, Lgt. Nuclear Core shutdown. 03842_ Overheating: Shotgun damaged (-72). 03842_ Overheating: Adv. Heat Sink damaged (-23). 03842_ Overheating: Transmission Jammer damaged (-3). 03842_ Overheating: Med. Storage Unit damaged (-136). 03842_ Lgt. Nuclear Core destroyed. 03843_ Overheating: Particle Gun damaged (-8). 03844_ Shotgun destroyed. 03844_ Critical hit (Burn: +37). 03845_ Overheating: Core damaged (-77). Map ----- +----------------------------------------------------+ | ??????????????? ?????????????????????????????????? | | ??????????????# ######???????????????????????????? | | ??????????????# ????????????????????????????? | | ??????????????# #????????????????????????????? | | ??????????????# #????????????????????????????? | | ??????????????+ #????????????????????????????? | | ??????????????# #????????????????????????????? | | ??????????????# #????????????????????????????? | | ??????????????# #????????????????????????????? | | ???############ #????????????????????????????? | | ???# ## #????????????????????????????? | | ???# + #????????????????????????????? | | #### # #????????????????????????????? | | # """""" # #????????????????????????????? | | + " !! " + #????????????????????????????? | | # " !!! ## #????????????????????????????? | | #!""""" = ## ###??????????????????????????? | | # = ## #??????????????????????????? | | ############ #??????????????????????????? | | #?????? ?# #??????????????????????????? | | #?????? ?# #??????????????????????????? | | #??????"""?# #??????????????? ?????????? | | #??????"""?# #####+######## #????????? | | #?????"""??+ % #????????? | | #??????????####### g g #????????? | | ###????????#######+# @ g g #????????? | | T"#????????#"%% =%=* * g " " ???????????? | | ""#????????##; %[%[p "G" ????????????? | | ###?????????## %* " ???????????? | | #????????????# a ??????????? | | #????????????# " T"" # #????????? | | #????????????# """"" #?########?????????? | | ########+##??##########;####??????????????????? | | ?????????? ?????????????????????? | | ?????????? ?????????????????????? | | ?????????? ?????????????????????? | | ###############???????????##?????????????????????? | | ?????????????????????????????????????????????????? | | | | | | | | | | | | | | | | | | | | | | | | | +----------------------------------------------------+ Best States ------------- Heat Dissipation 53 Energy Generation 25 Energy Capacity 430 Matter Stores 300 Matter Capacity 300 Sight Range 16 Robot Scan Range 20 Terrain Scan Density 10 Jamming Range 12 Base Temperature (-) 100 Armor Coverage 225 Evasion (%) 44 Offensive Hacking 10 Item Schematics ----------------- None Robot Schematics ------------------ G-47 Trooper | -7/Factory | Hacked Fabricated ------------ C-17 Slicer | x3 | -7/Factory | Preloaded Alien Tech Used ----------------- None Achievements -------------- My Command Is Your Wish Challenges ------------ None Game ------ Seed HeavyThunderNetwork Manual? 0 Play Time 01:06:34 Cumulative 27.7 hours Start 2022.03.20 @ 12:00:37 End 2022.03.21 @ 17:24:00 Sessions 5 Manual Loads 0 Difficulty Rogue Special Mode None Game No. 31 Rogue 31 Adventurer 0 Explorer 0 Win Type - Total 0 Types 0/0/0/0/0/0/0/0/0 Lore% 29 Gallery% 23 Achievement% 21 Wizard Run 0 Options --------- ASCII 0 Keyboard 0 Movement Numpad Keybinds 0 Fullscreen 2 Font 18/SmallcapsGlow Map View 76x50 Tactical HUD 1 Map Filters NONE Filters NONE Steam 1 RUN: a6fc7e06-08fb-48cf-af90-9d0670a5e55c